bitfinex/quotes_ETHUSD_20250821
["timestamp","ask_amount","ask_price","bid_price","bid_amount"]
[1755791348470,42.55148644,4262.9,4262.8,0.001]
[1755791351071,12.55148644,4262.9,4262.8,0.001]
[1755791351268,42.55148644,4262.9,4262.4,0.001]
[1755791351599,19.63182205,4262.5,4262.4,0.001]
[1755791351805,24.2881276,4262.5,4262.4,0.001]
[1755791351972,54.2881276,4262.5,4262.4,0.001]
[1755791352170,57.07576865,4262.5,4262.4,0.001]
[1755791352607,57.07572213,4262.5,4262.4,0.001]
[1755791352922,59.43786176,4262.5,4262.4,0.001]
[1755791353805,59.43886176,4262.5,4262.4,0.001]
[1755791354106,57.09282071,4262.5,4262.4,0.001]
[1755791354306,59.43886176,4262.5,4262.4,0.001]
[1755791355014,6.00609609,4262.4,4262.3,0.001]
[1755791355316,37.9367938,4262.4,4262.3,0.001]
[1755791356172,35.59069771,4262.4,4262.3,0.001]
[1755791356374,39.20309771,4262.4,4262.3,0.001]
[1755791356806,39.64459771,4262.4,4261.8,0.02]
[1755791357010,14.285781,4261.9,4261.8,0.02]
[1755791357181,45.73488371,4261.9,4261.8,0.02]
[1755791357386,49.78888371,4261.9,4261.8,0.02]
[1755791357790,50.00653423,4261.9,4261.8,0.02]
[1755791357992,35.10899672,4261.9,4261.8,0.02]
[1755791358202,39.27821076,4261.9,4261.8,0.327]
[1755791358403,39.16299672,4261.9,4261.8,0.7945]
[1755791359011,9.16219672,4261.9,4261.8,0.327]
[1755791360215,9.16219672,4261.9,4261.8,0.02]
[1755791360975,9.16244284,4261.9,4261.8,0.02]
[1755791361318,9.16694284,4261.9,4261.8,0.02]
[1755791361495,53.37013995,4261.9,4261.8,0.02]
[1755791363096,52.92363995,4261.9,4261.8,0.02]
[1755791364393,55.71651128,4261.9,4261.8,0.02]
[1755791364594,53.37013995,4261.9,4261.8,0.02]
[1755791365189,55.71651128,4261.9,4261.8,0.02]
[1755791365393,55.71651128,4261.9,4261.5,0.001]
[1755791365394,6.00653651,4261.6,4261.5,0.001]
[1755791365593,45.08917733,4261.6,4261.5,0.001]
[1755791366027,45.53127733,4261.6,4261.5,0.001]
[1755791366230,43.18474082,4261.6,4261.5,0.001]
[1755791366429,45.53127733,4261.6,4261.5,0.001]
[1755791366927,45.18246458,4261.6,4261.5,0.001]
[1755791367136,45.53140717,4261.6,4261.5,0.001]
[1755791368113,42.74277066,4261.6,4261.5,0.001]
[1755791368531,45.54030717,4261.6,4261.5,0.001]
[1755791368736,38.68977066,4261.6,4261.5,0.001]
[1755791368939,56.36855166,4261.6,4261.5,0.001]
[1755791369732,52.31555166,4261.6,4261.5,0.001]
[1755791370033,56.01960907,4261.6,4261.5,0.001]
[1755791370235,56.36833647,4261.6,4261.5,0.001]
[1755791370398,52.31533647,4261.6,4261.5,0.001]
[1755791370605,56.35943647,4261.6,4261.5,0.001]
[1755791370800,56.64283647,4261.6,4261.5,0.001]
[1755791372105,56.35943647,4261.6,4261.5,0.001]
[1755791372742,52.30643647,4261.6,4261.5,0.001]
[1755791372949,56.64273647,4261.6,4261.5,0.001]
[1755791373150,56.35943647,4261.6,4261.5,0.001]
[1755791373442,56.35948877,4261.6,4261.5,0.001]
[1755791373639,56.48212487,4261.6,4261.5,0.001]
[1755791374243,38.80334387,4261.6,4261.5,0.308]
[1755791374408,42.85634387,4261.6,4261.5,0.7755]
[1755791374802,42.85634387,4261.6,4261.5,0.001]
[1755791375021,43.13964387,4261.6,4261.5,0.001]
[1755791375350,45.48618038,4261.6,4261.5,0.001]
[1755791375548,0.66,4261.1,4260.8,0.02]
[1755791375715,14.570781,4260.9,4260.8,0.02]
[1755791375909,48.42334914,4260.9,4260.8,0.02]
[1755791377052,52.19034914,4260.9,4260.8,0.327]
[1755791377356,52.19034914,4260.9,4260.8,0.02]
[1755791377357,52.48144914,4260.9,4260.8,0.02]
[1755791377718,54.82837115,4260.9,4260.8,0.02]
[1755791377925,0.66,4260.7,4259.4,0.4672]
[1755791378230,3.66,4260.5,4258.8,0.02]
[1755791378432,3.0,4260.3,4259.9,0.4672]
[1755791378642,3.0,4260.1,4259.9,0.4672]
[1755791378857,7.052,4260.0,4259.9,0.4672]
[1755791379062,1.806,4260.6,4259.9,0.7662]
[1755791379263,4.052,4260.5,4260.0,0.49067417]
[1755791379442,4.052,4260.5,4260.4,0.299]
[1755791380133,4.2704843,4260.5,4260.4,0.7662]
[1755791380972,0.2184843,4260.5,4260.4,0.7662]
[1755791381270,0.2184843,4260.5,4259.8,0.02]
[1755791381271,0.66,4260.4,4259.8,0.02]
[1755791381470,3.0,4260.2,4259.8,0.02]
[1755791381682,0.66,4259.9,4259.8,0.02]
[1755791381842,8.43394181,4259.9,4259.8,0.319]
[1755791382330,4.38194181,4259.9,4259.8,0.319]
[1755791382537,8.43315793,4259.9,4259.8,0.319]
[1755791382772,8.43315793,4259.9,4259.8,0.7862]
[1755791383163,8.43315793,4259.9,4259.8,0.319]
[1755791384067,8.43315793,4259.9,4259.8,0.7862]
[1755791384565,7.77395793,4259.9,4259.8,0.7862]
[1755791384765,3.72195793,4259.9,4259.8,0.7862]
[1755791384974,7.77395793,4259.9,4259.8,0.319]
[1755791385165,3.72195793,4259.9,4259.8,0.7862]
[1755791385469,3.21850042,4259.9,4259.8,0.319]
[1755791385630,7.27056751,4259.9,4259.8,0.7862]
[1755791386049,7.77410093,4259.9,4259.8,0.319]
[1755791386269,8.55151102,4259.9,4259.8,0.319]
[1755791386451,8.55151102,4259.9,4259.8,0.02]
[1755791386759,9.21151102,4259.9,4259.8,0.02]
[1755791387447,7.77310093,4259.9,4259.8,0.7862]
[1755791387648,7.77315405,4259.9,4259.8,0.7862]
[1755791387902,7.26956751,4259.9,4259.8,0.7862]
[1755791388559,3.0,4259.9,4259.8,0.7862]
[1755791388762,3.21864117,4259.9,4259.8,0.7862]
[1755791388964,7.051,4259.9,4259.8,0.7862]
[1755791389164,7.26969078,4259.9,4259.8,0.319]
[1755791390189,8.88121629,4259.9,4259.8,0.02]
[1755791390389,9.81280792,4259.9,4259.8,0.02]
[1755791390959,9.49650792,4259.9,4259.8,0.02]
[1755791391155,9.49650792,4259.9,4259.8,0.319]
[1755791391470,9.81280792,4259.9,4259.8,0.02]
[1755791391984,9.49650792,4259.9,4259.8,0.02]
[1755791392191,9.49650792,4259.9,4259.8,0.319]
[1755791392555,5.44550792,4259.9,4259.8,0.319]
[1755791392775,8.56491629,4259.9,4259.8,0.319]
[1755791393493,7.77366674,4259.9,4259.8,0.7862]
[1755791393656,7.26969078,4259.9,4259.8,0.7862]
[1755791393862,7.77442684,4259.9,4259.8,0.319]
[1755791394263,3.72355006,4259.9,4259.8,0.7862]
[1755791394462,7.26969078,4259.9,4259.8,0.7862]
[1755791394663,3.0,4259.9,4259.8,0.7862]
[1755791394864,7.05,4259.9,4259.8,0.7862]
[1755791395260,3.0,4259.9,4259.8,0.7862]
[1755791395465,7.05,4259.9,4259.8,0.7862]
[1755791395665,3.0,4259.9,4259.8,0.7862]
[1755791395909,7.05,4259.9,4259.8,0.319]
[1755791396211,8.47913761,4259.9,4259.8,0.02]
[1755791396367,8.47913761,4259.9,4259.8,0.319]
[1755791396567,8.47913761,4259.9,4259.8,0.02]
[1755791397168,8.79543761,4259.9,4259.8,0.02]
[1755791397521,8.92693439,4259.9,4259.8,0.02]
[1755791398003,8.70776593,4259.9,4259.8,0.02]
[1755791398190,10.02161682,4259.9,4259.8,0.02]
[1755791398571,10.02161492,4259.9,4259.8,0.02]
[1755791399293,10.00917302,4259.9,4259.8,0.02]
[1755791399494,9.57447302,4259.9,4259.8,0.02]
[1755791399801,5.20817302,4259.9,4259.8,0.319]
[1755791400007,8.55317302,4259.9,4259.8,0.319]
[1755791400204,3.84317302,4259.9,4259.8,0.319]
[1755791400405,7.76168249,4259.9,4259.8,0.7862]
[1755791400793,4.26912354,4259.9,4259.8,0.7862]
[1755791401104,4.05,4260.2,4259.8,0.7862]
[1755791401321,4.05,4260.1,4259.9,0.49067472]
[1755791401520,4.049,4260.1,4260.0,0.299]
[1755791401727,4.049,4260.1,4260.0,0.7662]
[1755791402824,4.049,4260.1,4259.8,0.02]
[1755791402825,7.3653,4260.1,4259.8,0.02]
[1755791402992,3.60077264,4260.0,4259.8,0.02]
[1755791403192,7.58448344,4259.9,4259.8,0.02]
[1755791403422,7.77327137,4259.9,4259.8,0.02]
[1755791403623,7.77327137,4259.9,4259.8,0.319]
[1755791403806,0.66,4258.1,4256.8,0.02]
[1755791404001,3.135,4259.6,4257.3,0.4672]
[1755791404002,0.66,4257.9,4257.3,0.4672]
[1755791404219,3.0,4257.7,4257.4,0.4672]
[1755791404401,1.806,4258.6,4257.8,0.299]
[1755791404601,7.30476232,4258.5,4257.9,0.4672]
[1755791404804,0.72303307,4258.4,4258.0,0.0234852]
[1755791405020,4.32823819,4258.3,4257.9,0.4672]
[1755791405231,0.02348482,4258.3,4258.2,0.299]
[1755791405429,0.52773006,4258.3,4258.2,0.7662]
[1755791406095,1.806,4258.6,4258.2,0.7662]
[1755791406312,0.2187784,4258.5,4258.3,0.4672]
[1755791406526,4.084,4258.7,4257.9,0.4672]
[1755791406692,4.83058666,4258.6,4257.9,0.4672]
[1755791406895,4.80710184,4258.5,4256.8,0.02]
[1755791407119,0.21874041,4258.4,4257.5,0.4672]
[1755791407308,4.30274041,4258.4,4258.3,0.299]
[1755791407507,4.32622523,4258.4,4258.3,0.7662]
[1755791407714,4.30274041,4258.4,4258.3,0.7662]
[1755791408110,4.32622523,4258.4,4258.3,0.299]
[1755791408400,4.32622523,4258.4,4258.3,0.7473]
[1755791408401,0.02348482,4258.4,4258.3,0.7473]
[1755791408624,4.084,4258.7,4258.3,0.7473]
[1755791408933,4.084,4258.7,4258.4,0.47178299]
[1755791409237,4.084,4258.9,4258.6,0.2922]
[1755791409423,0.74631719,4258.8,4258.6,0.2922]
[1755791409607,0.52760808,4258.8,4258.6,0.2922]
[1755791410046,0.21873697,4258.7,4257.4,1.806]
[1755791410232,4.10648482,4258.6,4257.9,0.4483]
[1755791411015,4.10648482,4258.6,4258.5,0.2922]
[1755791411379,1.806,4259.1,4258.5,0.7405]
[1755791411513,3.24232761,4259.0,4258.5,0.7405]
[1755791411715,0.21884815,4258.9,4258.6,0.4483]
[1755791412015,0.21884815,4258.9,4258.8,0.2922]
[1755791412418,0.72435168,4258.9,4258.1,0.4483]
[1755791412628,0.24233297,4258.8,4258.1,0.4483]
[1755791412829,0.50550353,4258.9,4258.7,0.2922]
[1755791415536,0.21962136,4258.8,4258.7,0.2922]
[1755791415916,0.21957179,4258.8,4258.7,0.2922]
[1755791416353,3.0,4258.7,4257.8,0.4483]
[1755791416672,0.74920575,4258.6,4257.4,1.806]
[1755791416846,3.0,4258.4,4257.4,2.2543]
[1755791417040,0.72572093,4258.3,4257.5,0.47178796]
[1755791417255,3.0,4258.4,4258.2,0.2922]
[1755791417563,3.0,4258.8,4258.3,0.4483]
[1755791417776,3.0,4258.8,4257.4,1.806]
[1755791418071,3.0,4258.8,4257.5,0.629]
[1755791418277,3.0,4258.8,4258.7,0.2922]
[1755791418475,3.72556465,4258.8,4258.2,0.4483]
[1755791418774,3.0,4258.8,4258.2,0.4483]
[1755791419179,0.72547189,4258.7,4257.6,0.4483]
[1755791419477,4.29254864,4258.6,4257.6,0.6918]
[1755791419633,0.02348482,4258.5,4257.6,0.6918]
[1755791420288,0.02348482,4258.5,4258.4,0.2922]
[1755791420482,1.806,4259.1,4258.4,0.2922]
[1755791420770,3.0,4258.8,4258.4,0.2922]
[1755791421146,0.21918543,4258.7,4258.4,0.2922]
[1755791421357,0.21918543,4258.7,4258.4,0.7405]
[1755791421563,0.21932099,4258.7,4258.4,0.7405]
[1755791422181,0.21932099,4258.7,4258.4,0.2922]
[1755791422387,0.3121,4258.5,4257.6,0.2435]
[1755791422677,0.21944822,4258.4,4257.7,0.47178685]
[1755791422895,0.02348482,4258.3,4257.4,1.806]
[1755791423049,4.074,4258.4,4257.5,0.4483]
[1755791423384,0.74866788,4258.3,4257.5,0.4483]
[1755791423543,0.21944822,4258.2,4257.5,0.4483]
[1755791423744,0.21944822,4258.2,4258.1,0.2922]
[1755791424046,0.21944822,4258.2,4258.1,0.7405]
[1755791424252,0.21944822,4258.4,4258.1,0.7405]
[1755791424452,0.21944822,4258.4,4258.2,0.0234841]
[1755791424772,0.24287292,4258.6,4258.3,0.2922]
[1755791424976,0.74854076,4258.6,4257.6,0.4483]
[1755791425149,0.21940537,4258.5,4257.7,0.2435]
[1755791425350,0.24289019,4258.6,4257.7,0.2435]
[1755791425750,0.21940537,4258.6,4257.7,0.2435]
[1755791426045,4.07,4258.8,4257.8,0.4483]
[1755791426259,0.74863568,4258.7,4257.8,0.4483]
[1755791426462,1.17261894,4258.6,4257.4,1.806]
[1755791426663,0.24289019,4258.5,4257.4,1.806]
[1755791426864,0.21940537,4258.4,4257.4,1.806]
[1755791427065,0.02348482,4258.3,4257.4,1.806]
[1755791427472,0.02348482,4258.3,4258.2,0.2922]
[1755791427678,0.24289019,4258.5,4257.5,0.47178796]
[1755791427987,0.21940537,4258.5,4258.4,0.2922]
[1755791428504,0.50556098,4258.8,4258.4,0.7405]
[1755791428655,0.21936756,4258.7,4258.4,0.2922]
[1755791428851,0.21936756,4258.8,4258.4,0.2922]
[1755791429599,0.3121,4258.5,4257.6,0.4483]
[1755791429899,0.21856756,4258.4,4257.7,0.24821788]
[1755791430394,0.02348482,4258.8,4258.3,0.2922]
[1755791430555,0.5290458,4258.9,4258.3,0.2922]
[1755791430759,0.3121,4258.4,4257.4,2.2543]
[1755791431065,0.4285,4258.7,4257.4,1.806]
[1755791431285,0.02348482,4258.6,4257.5,0.629]
[1755791431502,0.3121,4257.6,4256.8,0.02]
[1755791431807,0.02348482,4257.5,4256.8,0.02]
[1755791432167,4.067,4258.5,4257.4,0.2922]
[1755791432370,0.50630923,4258.4,4257.5,0.47178796]
[1755791432573,3.50630923,4258.8,4258.3,0.2922]
[1755791432771,0.50630923,4258.7,4257.7,0.4483]
[1755791433367,3.02348482,4258.8,4257.7,0.4483]
[1755791433368,0.50630923,4258.6,4257.7,0.4483]
[1755791433564,0.50630923,4258.7,4258.5,0.2922]
[1755791433769,0.50630923,4258.9,4258.5,0.2922]
[1755791433979,0.50630923,4258.8,4258.6,0.02348189]
[1755791434194,0.50630923,4258.9,4258.6,0.02348189]
[1755791434502,0.50630923,4258.9,4258.2,0.4483]
[1755791434503,0.50630923,4258.8,4258.2,0.4483]
[1755791434675,0.50630923,4258.7,4258.2,0.4483]
[1755791435017,0.50630923,4258.7,4257.8,1.807]
[1755791435018,0.50630923,4259.0,4257.8,1.807]
[1755791435170,0.50630923,4259.0,4258.2,0.4483]
[1755791435171,0.50630923,4258.9,4258.2,0.4483]
[1755791435375,0.50630923,4258.8,4257.9,0.1807]
[1755791435575,0.50630923,4258.9,4257.9,0.1807]
[1755791435786,0.52979405,4258.8,4257.9,0.1807]
[1755791436002,0.50630923,4258.7,4257.9,0.1807]
[1755791436312,0.50630923,4258.9,4258.7,0.2922]
[1755791436486,0.50630923,4259.3,4258.8,0.4483]
[1755791436680,0.50630923,4259.6,4258.8,0.4483]
[1755791436880,0.002,4259.7,4259.2,0.2922]
[1755791437596,0.002,4259.7,4258.6,1.807]
[1755791437772,0.0045,4259.3,4258.6,1.807]
[1755791437974,0.4469,4259.6,4258.6,1.9877]
[1755791438172,0.95320923,4259.6,4258.6,1.807]
[1755791438482,0.02348482,4259.5,4258.6,1.807]
[1755791438869,0.50630923,4259.6,4258.6,1.807]
[1755791439067,0.52979405,4259.5,4258.0,0.7089]
[1755791439272,0.50630923,4259.4,4258.0,0.4653]
[1755791439506,0.50630923,4259.4,4257.8,1.807]
[1755791439507,0.02348482,4259.3,4257.8,1.807]
[1755791439705,0.4469,4259.2,4257.9,0.4653]
[1755791439906,0.02348482,4259.1,4257.9,0.4653]
[1755791440408,3.4469,4259.0,4257.8,1.807]
[1755791440585,1.70704771,4258.9,4257.8,1.807]
[1755791440913,0.0045,4257.9,4257.2,4.069]
[1755791441297,0.4621,4258.2,4257.2,4.069]
[1755791441473,0.02348482,4258.1,4257.2,4.5343]
[1755791442484,0.24318857,4258.2,4257.2,4.5343]
[1755791442795,0.02348482,4258.2,4257.2,5.16833]
[1755791443302,0.50630923,4258.4,4258.1,0.3057]
[1755791443522,0.50630923,4258.7,4258.1,0.3057]
[1755791444076,0.2906,4258.2,4257.4,0.4653]
[1755791444302,0.2906,4258.2,4257.2,0.63503]
[1755791444303,4.09248482,4258.1,4257.2,0.001]
[1755791444485,4.21054937,4258.0,4257.2,0.001]
[1755791444681,0.74951571,4257.9,4257.2,0.001]
[1755791444904,0.21972166,4257.8,4257.2,0.001]
[1755791445205,0.02348482,4257.7,4257.2,0.001]
[1755791445578,0.48558482,4257.7,4257.2,0.001]
[1755791446087,0.2906,4257.3,4257.2,0.001]
[1755791446300,3.2906,4257.3,4257.2,0.001]
[1755791446604,0.66,4257.0,4256.8,0.02]
[1755791446912,20.48385775,4256.9,4256.8,0.02]
[1755791447098,20.92247293,4256.9,4256.8,0.02]
[1755791447288,23.28461256,4256.9,4256.8,0.02]
[1755791448208,27.35861256,4256.9,4256.8,0.02]
[1755791448909,43.51134234,4256.9,4256.8,0.02]
[1755791449489,13.51134234,4256.9,4256.8,0.02]
[1755791449812,8.77934234,4256.9,4256.8,0.02]
[1755791450011,5.82340918,4256.9,4256.8,0.02]
[1755791450216,10.35950918,4256.9,4256.8,0.02]
[1755791450621,5.31330923,4256.9,4256.8,0.02]
[1755791450786,8.881,4256.9,4256.8,0.02]
[1755791450986,8.881,4256.9,4256.8,0.3257]
[1755791451187,5.881,4256.9,4256.8,0.02]
[1755791451427,8.881,4256.9,4256.8,0.02]
[1755791452316,4.807,4256.9,4256.8,0.3257]
[1755791452518,3.0,4256.9,4256.8,0.3257]
[1755791452889,3.0,4256.9,4256.8,0.02]
[1755791453714,2.9992,4256.9,4256.8,0.3257]
[1755791453941,2.9992,4256.9,4256.8,0.02]
[1755791454115,3.99956848,4256.9,4256.8,0.02]
[1755791454599,4.46166848,4256.9,4256.8,0.02]
[1755791454803,4.4851533,4256.9,4256.8,0.02]
[1755791455006,5.6497521,4256.9,4256.8,0.02]
[1755791455334,30.66,4256.8,4255.8,0.02]
[1755791455487,0.2906,4255.9,4255.8,0.02]
[1755791455692,23.48586582,4255.9,4255.8,0.02]
[1755791455896,23.924481,4255.9,4255.8,0.02]
[1755791457587,19.845481,4255.9,4255.8,0.02]
[1755791457999,23.921481,4255.9,4255.8,0.02]
[1755791458205,11.41480806,4255.9,4255.8,0.02]
[1755791458408,11.87690806,4255.9,4255.8,0.02]
[1755791458739,12.53690806,4255.9,4255.8,0.02]
[1755791460502,7.33880806,4255.9,4255.8,0.02]
[1755791460704,3.0,4255.9,4255.8,0.791]
[1755791460911,1.807,4256.5,4255.8,0.791]
[1755791461117,4.09848482,4256.4,4255.8,0.791]
[1755791461335,4.09848482,4256.4,4255.8,0.3257]
[1755791461540,3.0,4256.3,4255.8,0.02]
[1755791461737,0.9602433,4256.2,4255.8,0.02]
[1755791461941,4.076,4256.1,4255.8,0.02]
[1755791462244,3.0,4256.4,4255.8,0.02]
[1755791462544,4.076,4256.3,4256.1,0.3057]
[1755791463308,1.807,4256.5,4256.1,0.3057]
[1755791463511,1.807,4256.5,4256.2,0.48879513]
[1755791463743,4.076,4256.7,4256.4,0.3057]
[1755791463954,4.076,4256.7,4256.5,0.4653]
[1755791464111,4.076,4256.7,4256.6,0.3057]
[1755791464747,4.076,4256.7,4256.1,0.4653]
[1755791465306,4.076,4256.7,4255.8,0.021]
[1755791465505,3.45381,4256.6,4255.8,0.021]
[1755791465741,0.02348482,4256.5,4255.8,0.021]
[1755791466013,3.0,4256.3,4255.8,0.021]
[1755791466320,4.09748482,4256.2,4255.8,0.021]
[1755791466535,4.074,4256.1,4255.8,0.021]
[1755791466739,1.808,4256.8,4256.1,0.3057]
[1755791466935,4.073,4256.8,4256.2,0.48879513]
[1755791467142,0.02348482,4256.7,4255.8,0.021]
[1755791467344,4.073,4256.8,4256.6,0.3057]
[1755791467958,0.02348482,4256.7,4255.8,0.4542]
[1755791468279,0.48588482,4256.7,4255.8,0.021]
[1755791468932,0.02348482,4256.7,4255.8,0.4542]
[1755791469147,3.0,4256.5,4255.8,0.4542]
[1755791469347,13.627781,4257.3,4255.8,0.4542]
[1755791469348,0.002,4257.3,4256.4,0.3016]
[1755791469652,0.002,4257.3,4256.5,0.4332]
[1755791469875,3.0,4257.1,4256.5,0.4332]
[1755791470072,0.002,4257.3,4257.0,0.3016]
[1755791470455,0.002,4257.3,4257.1,0.4332]
[1755791470656,0.002,4257.3,4257.2,0.3016]
[1755791471280,0.002,4257.3,4257.2,0.7348]
[1755791473587,0.002,4257.3,4257.2,1.3948]
[1755791473762,0.002,4257.3,4257.2,1.53428]
[1755791474313,0.002,4257.3,4257.2,6.88324175]
[1755791474596,0.002,4257.3,4257.2,7.00084175]
[1755791476252,0.002,4257.3,4257.2,4.65188]
[1755791476460,0.002,4257.3,4257.2,4.53428]
[1755791476881,0.002,4257.3,4257.2,3.87428]
[1755791477392,0.002,4257.3,4257.2,6.24673136]
[1755791477601,0.0012,4257.3,4257.2,4.53428]
[1755791477966,0.0012,4257.3,4257.2,8.62528]
[1755791478503,0.0012,4257.3,4257.2,10.97424175]
[1755791480182,0.002,4258.2,4257.7,6.00868591]
[1755791480388,0.002,4258.2,4257.7,22.57881164]
[1755791480599,0.002,4258.2,4257.7,23.01201164]
[1755791481660,0.002,4258.2,4257.7,23.28505995]
[1755791481816,0.002,4258.2,4258.1,6.00846527]
[1755791481974,0.002,4258.2,4258.1,10.40006527]
[1755791482175,0.002,4258.2,4258.1,9.80198408]
[1755791482369,0.002,4258.2,4258.1,5.71298408]
[1755791482620,0.002,4258.2,4258.1,10.83226527]
[1755791483019,0.002,4258.2,4258.1,4.3948]
[1755791483314,0.002,4258.2,4258.1,3.66]
[1755791483615,0.002,4258.2,4258.1,7.3896]
[1755791484177,0.002,4258.2,4257.7,2.64274473]
[1755791484398,0.002,4258.2,4257.8,7.35227447]
[1755791484708,0.002,4258.2,4257.8,4.35227447]
[1755791484898,0.002,4258.2,4257.9,3.0]
[1755791485092,0.002,4258.2,4257.8,4.35227447]
[1755791485417,0.002,4258.2,4257.9,0.02348575]
[1755791485607,0.002,4258.2,4258.1,0.3016]
[1755791485820,0.002,4258.2,4258.1,0.32508465]
[1755791485979,0.002,4258.2,4258.1,0.02348465]
[1755791486178,0.3052,4258.2,4257.7,1.807]
[1755791486484,0.3052,4258.2,4257.8,4.2667]
[1755791486485,0.002,4258.2,4257.8,4.2667]
[1755791486873,0.002,4258.2,4258.1,0.3016]
[1755791487415,0.002,4258.2,4258.1,1.3948]
[1755791487944,0.002,4258.2,4258.1,0.9616]
[1755791488082,0.002,4258.2,4258.1,5.50628465]
[1755791488281,0.002,4258.2,4258.1,9.18143388]
[1755791488697,0.002,4258.2,4258.1,12.18143388]
[1755791489803,0.002,4258.2,4258.1,12.29903388]
[1755791490012,0.02,4258.8,4258.7,2.3481344]
[1755791490213,0.02,4258.8,4258.7,25.8275154]
[1755791490526,0.02,4258.8,4258.7,28.35889064]
[1755791495032,0.02,4258.8,4258.7,11.94577524]
[1755791495234,0.02,4258.8,4258.7,10.96169324]
[1755791495434,0.02,4258.8,4258.7,8.981118]
[1755791495655,0.7856,4258.8,4258.7,1.806]
[1755791495859,0.7856,4258.8,4258.7,5.887]
[1755791496466,0.02,4258.8,4258.7,5.887]
[1755791497560,0.3232,4258.8,4258.7,5.887]
[1755791497755,0.7555,4258.8,4258.7,5.887]
[1755791497969,0.3232,4258.8,4258.7,5.887]
[1755791498258,0.3232,4258.8,4258.7,6.4757]
[1755791498259,0.02,4258.8,4258.7,6.4757]
[1755791498655,0.7434,4258.8,4258.7,5.885]
[1755791500536,0.3111,4258.8,4258.7,5.885]
[1755791501075,0.02,4258.8,4258.7,5.885]
[1755791501248,0.0192,4258.8,4258.7,5.885]
[1755791501645,0.0212,4258.8,4258.7,5.885]
[1755791503755,0.7446,4258.8,4258.7,1.806]
[1755791504166,0.7446,4258.8,4258.7,4.072]
[1755791504389,1.47057658,4258.8,4258.6,4.072]
[1755791504592,0.4323,4258.7,4258.6,4.072]
[1755791504892,0.7234,4258.7,4258.6,4.072]
[1755791505058,0.94319413,4258.7,4258.6,4.072]
[1755791505257,0.7234,4258.7,4258.6,4.072]
[1755791505559,0.94319535,4258.7,4258.6,4.072]
[1755791505759,0.7234,4258.7,4258.6,4.072]
[1755791507739,0.0212,4258.8,4258.6,4.072]
[1755791507916,0.0212,4258.8,4258.7,0.02348134]
[1755791508098,0.0212,4258.8,4258.6,4.072]
[1755791508537,0.0212,4258.8,4258.7,0.02348134]
[1755791509093,0.0212,4258.8,4258.7,0.31908134]
[1755791509518,0.0212,4258.8,4258.6,4.072]
[1755791509735,0.93864623,4259.4,4258.6,4.072]
[1755791509736,0.50634623,4259.6,4258.8,0.66]
[1755791509937,0.50634623,4260.6,4259.4,2.6433485]
[1755791510097,0.4543,4260.8,4259.4,4.39107748]
[1755791510290,0.21972995,4260.7,4259.4,10.18632598]
[1755791510572,0.21972995,4260.7,4259.4,10.17723963]
[1755791510903,0.21972995,4260.7,4259.4,10.1628485]
[1755791511421,0.21972995,4260.7,4259.4,10.8228485]
[1755791511626,0.4543,4260.8,4259.4,10.8228485]
[1755791511627,0.022,4260.8,4259.4,10.99882355]
[1755791514115,0.4343,4260.4,4259.4,6.47932355]
[1755791514406,0.4343,4260.4,4259.4,10.54632355]
[1755791514629,0.4343,4260.4,4259.4,9.50916344]
[1755791514936,0.4343,4260.4,4259.4,11.85691194]
[1755791515508,0.4343,4260.4,4259.4,9.33318839]
[1755791515710,0.4323,4260.0,4259.4,8.37758839]
[1755791516032,0.2931,4259.5,4258.9,0.094118]
[1755791516346,0.7254,4259.5,4259.0,4.076]
[1755791516710,0.2931,4259.5,4259.0,4.076]
[1755791516907,0.4323,4259.4,4259.0,4.076]
[1755791517115,0.2911,4259.1,4259.0,4.076]
[1755791517315,0.002,4259.5,4259.0,4.4836]
[1755791517613,0.2911,4259.1,4258.6,1.806]
[1755791517943,0.4323,4259.0,4258.7,4.075]
[1755791518147,0.2911,4258.8,4258.7,4.075]
[1755791518304,0.4343,4259.5,4258.7,4.09848134]
[1755791519067,0.002,4259.5,4259.4,0.2956]
[1755791519257,0.002,4259.5,4259.4,10.54644792]
[1755791519539,0.002,4259.5,4259.4,10.09894792]
[1755791520208,0.002,4259.5,4259.4,10.54644792]
[1755791520414,0.002,4259.5,4259.4,10.09894792]
[1755791521215,0.002,4259.5,4259.4,12.89419642]
[1755791522206,0.002,4259.5,4259.4,17.08419642]
[1755791524639,0.002,4259.5,4259.4,17.25923702]
[1755791525142,0.0012,4259.5,4259.4,17.25923702]
[1755791526144,0.0012,4259.5,4259.4,17.37683702]
[1755791527241,0.0012,4259.5,4259.4,17.47093302]
[1755791530845,0.002,4260.0,4259.4,20.14593302]
[1755791530846,1e-08,4259.7,4259.4,20.14593302]
[1755791531045,0.002,4260.0,4259.9,17.0347938]
[1755791531209,0.002,4260.4,4260.3,3.00725254]
[1755791531414,0.002,4260.4,4260.3,14.65475254]
[1755791531622,0.002,4260.4,4260.3,15.21605254]
[1755791531838,0.002,4260.4,4260.3,16.24048884]
[1755791532034,0.002,4261.0,4260.7,5.48203217]
[1755791532238,1e-08,4261.0,4260.9,5.48192201]
[1755791532420,1e-08,4261.0,4260.9,12.96802201]
[1755791532743,1e-08,4261.0,4260.9,13.67606993]
[1755791532948,0.02,4261.8,4261.7,3.00648145]
[1755791533124,0.02,4261.8,4261.7,12.17998145]